bitfinex-derivatives/quotes_SOLF0:USTF0_20250924
["timestamp","ask_amount","ask_price","bid_price","bid_amount"]
[1758686769464,4.3453,207.04,206.88,7.39]
[1758686769969,4.3453,207.04,206.89,164.4]
[1758686770164,71.9432,207.02,206.88,7.39]
[1758686770369,4.3457,207.02,206.89,164.18]
[1758686770566,67.5843,207.06,206.89,164.18]
[1758686770768,71.9235,207.08,206.9,82.79691824]
[1758686771070,39.4009154,207.12,206.95,3.42441824]
[1758686771271,67.5682,207.11,206.96,7.39]
[1758686771471,67.5682,207.11,206.97,164.14]
[1758686771663,4.3436,207.11,206.97,164.14]
[1758686771862,71.912,207.11,206.97,164.14]
[1758686772166,71.9116,207.11,206.97,164.14]
[1758686772964,71.9222,207.08,206.96,7.39]
[1758686773165,4.3442,207.08,206.97,150.12]
[1758686773574,4.3442,207.08,206.96,7.39]
[1758686773769,3.42441824,207.19,206.86,14.52]
[1758686773770,4.3422,207.18,207.0,7.77021824]
[1758686773960,4.3422,207.18,207.01,171.0]
[1758686773961,67.5523,207.16,207.01,171.0]
[1758686774265,67.5483,207.17,207.01,171.0]
[1758686774873,67.5303,207.23,207.03,7.54]
[1758686775069,67.5363,207.21,207.04,3.42441824]
[1758686775280,67.5303,207.23,207.05,163.18]
[1758686775281,4.3421,207.19,207.05,163.18]
[1758686775476,67.5303,207.23,207.05,163.18]
[1758686775771,106.41641107,207.23,207.05,163.18]
[1758686775978,71.8734,207.22,207.05,163.18]
[1758686776173,67.5354,207.21,207.05,163.18]
[1758686776373,106.41641107,207.23,207.06,7.54]
[1758686776374,43.22721107,207.23,207.06,7.54]
[1758686776576,38.88611107,207.23,207.08,7.54]
[1758686776775,67.5162,207.27,207.08,7.54]
[1758686776966,4.3405,207.26,207.08,7.54]
[1758686777277,67.5517,207.16,206.98,7.54]
[1758686777463,71.9022,207.14,206.99,163.02]
[1758686777668,4.3431,207.14,206.99,163.02]
[1758686777865,67.5684,207.11,206.98,7.54]
[1758686778065,4.3441,207.09,206.97,365.28]
[1758686778373,4.3441,207.09,206.97,528.1]
[1758686778574,4.3446,207.07,206.97,365.28]
[1758686778970,67.5652,207.12,206.97,365.28]
[1758686779272,71.9084,207.12,206.97,377.1664]
[1758686779866,4.3435,207.12,206.97,377.1664]
[1758686780071,110.9699329,207.12,206.97,377.1664]
[1758686780271,71.9087,207.12,206.97,377.1664]
[1758686780471,67.552,207.16,207.03,7.54]
[1758686780676,67.5509,207.17,207.04,162.22]
[1758686780878,67.5532,207.16,207.04,162.22]
[1758686781078,67.5656,207.12,206.98,7.54]
[1758686781281,67.5656,207.12,206.99,162.04]
[1758686781674,4.3449,207.05,206.91,75.172]
[1758686781977,67.5845,207.06,206.91,7.54]
[1758686782177,67.5877,207.05,206.91,7.54]
[1758686782675,4.3453,207.04,206.91,7.54]
[1758686782979,4.346,207.0,206.91,7.54]
[1758686783182,67.5911,207.04,206.91,169.42]
[1758686783383,67.5841,207.06,206.91,169.42]
[1758686783677,67.5682,207.11,206.91,161.88]
[1758686783884,67.5711,207.1,206.92,7.64]
[1758686784678,67.5711,207.1,206.91,229.5126]
[1758686784679,67.5501,207.17,206.97,7.64]
[1758686784882,67.5645,207.12,206.97,7.64]
[1758686785272,4.3439,207.1,206.97,7.64]
[1758686785578,4.3439,207.1,206.98,161.44]
[1758686786075,67.5648,207.12,206.98,161.44]
[1758686786284,67.5784,207.08,206.97,168.72]
[1758686786784,67.5851,207.06,206.97,168.72]
[1758686787379,4.3452,207.04,206.97,168.72]
[1758686787584,67.5784,207.08,206.97,168.72]
[1758686787781,67.5679,207.11,206.97,168.72]
[1758686788078,4.3443,207.08,206.97,168.72]
[1758686788278,67.5455,207.18,207.0,7.64]
[1758686788473,67.534,207.22,207.01,67.5997]
[1758686788673,67.5356,207.21,207.04,11.985]
[1758686788874,67.5356,207.21,207.05,160.56]
[1758686789075,67.5311,207.23,207.06,11.9845]
[1758686789275,3.42441824,207.25,207.07,7.64]
[1758686789471,70.94801824,207.25,207.07,7.64]
[1758686789780,4.3414,207.22,207.07,7.64]
[1758686790080,67.5376,207.21,207.08,160.34]
[1758686790287,67.5329,207.22,207.08,160.34]
[1758686790484,67.5329,207.22,207.07,7.64]
[1758686790683,37.99276903,207.26,207.05,110.84]
[1758686790684,70.96091824,207.21,207.05,110.84]
[1758686790989,70.96091824,207.21,207.06,160.1]
[1758686791284,67.5177,207.27,207.08,7.64]
[1758686791678,67.5236,207.25,207.08,7.64]
[1758686791880,67.5314,207.23,207.09,106.94]
[1758686792076,67.5327,207.22,207.09,106.94]
[1758686792477,67.5314,207.23,207.1,159.8]
[1758686792680,70.94401824,207.26,207.1,159.8]
[1758686792879,4.341,207.24,207.1,159.8]
[1758686793280,67.5291,207.23,207.09,159.58]
[1758686793682,4.3418,207.2,207.09,159.58]
[1758686793884,4.3418,207.2,207.08,7.64]
[1758686794085,67.5291,207.23,207.1,159.46]
[1758686794086,71.8703,207.23,207.1,159.46]
[1758686794385,70.94401824,207.26,207.08,7.64]
[1758686794386,67.5273,207.24,207.11,159.18]
[1758686794589,67.5423,207.19,207.08,7.64]
[1758686794887,67.5196,207.26,207.08,75.2165]
[1758686795186,67.5226,207.25,207.08,7.64]
[1758686795686,4.3414,207.22,207.08,7.64]
[1758686796084,67.5529,207.16,206.98,7.64]
[1758686796287,67.5388,207.2,207.02,7.64]
[1758686796985,67.5618,207.13,207.02,7.64]
[1758686797187,67.5553,207.15,207.02,7.64]
[1758686797482,67.5692,207.11,206.96,372.82]
[1758686797883,4.3441,207.09,206.96,372.82]
[1758686798083,67.5815,207.07,206.96,372.82]
[1758686798383,70.97801824,207.16,206.96,372.82]
[1758686798583,67.5795,207.08,206.97,158.82]
[1758686798784,67.5569,207.15,206.97,158.82]
[1758686799383,67.5569,207.15,206.98,7.64]
[1758686799689,4.3435,207.12,206.98,7.64]
[1758686800288,4.3435,207.12,206.99,158.7]
[1758686801088,4.3429,207.15,206.99,158.7]
[1758686801585,4.3429,207.15,206.99,163.046]
[1758686801792,4.3437,207.11,206.98,7.64]
[1758686802188,4.3441,207.09,206.98,7.64]
[1758686803090,67.5632,207.13,206.98,7.64]
[1758686803293,67.5691,207.11,206.98,7.64]
[1758686803493,67.5691,207.11,206.98,165.52]
[1758686803994,67.5809,207.07,206.96,365.18]
[1758686804688,67.5645,207.12,206.96,365.18]
[1758686804884,67.5645,207.12,206.97,7.64]
[1758686805095,67.5721,207.1,206.97,7.64]
[1758686806386,67.5721,207.1,206.96,365.18]
[1758686806592,67.5909,207.04,206.87,7.64]
[1758686806786,67.5909,207.04,206.88,157.06]
[1758686807891,4.3456,207.02,206.88,161.4084]
[1758686808096,67.598,207.02,206.88,157.06]
[1758686808299,67.5909,207.04,206.88,157.06]
[1758686808300,67.5947,207.03,206.88,157.06]
[1758686808800,4.3461,207.0,206.88,157.06]
[1758686809396,4.3464,206.98,206.88,157.06]
[1758686809592,67.5782,207.08,206.9,7.64]
[1758686810094,67.5782,207.08,206.93,4.3473]
[1758686810294,67.5782,207.08,206.94,7.64]
[1758686810489,67.5782,207.08,206.95,156.2]
[1758686810694,67.5837,207.07,206.95,156.2]
[1758686811100,67.5837,207.07,206.96,156.08]
[1758686811602,4.3448,207.06,206.96,156.08]
[1758686813104,67.56,207.14,206.97,7.64]
[1758686813298,67.562,207.13,206.97,7.64]
[1758686813499,105.44916738,207.15,206.97,7.64]
[1758686813500,4.3441,207.09,206.98,155.26]
[1758686813896,67.5648,207.12,206.98,155.26]
[1758686814105,4.3445,207.07,206.97,7.64]
[1758686814297,4.3445,207.07,206.97,162.9]
[1758686814597,4.3449,207.05,206.97,162.9]
[1758686815802,4.3444,207.08,206.97,162.9]
[1758686816700,4.3438,207.11,206.97,162.9]
[1758686816900,37.89366738,207.15,206.98,8.06]
[1758686817204,67.5424,207.19,207.01,8.06]
[1758686817400,67.5458,207.18,207.01,8.06]
[1758686817601,67.5342,207.22,207.01,8.06]
[1758686817803,3.22078747,207.19,207.01,8.06]
[1758686818002,4.3425,207.17,207.03,4.3453]
[1758686818202,4.3425,207.17,207.04,8.06]
[1758686818403,4.3425,207.17,207.05,154.26]
[1758686819209,43.03085333,207.2,207.05,158.6048]
[1758686819506,43.03085333,207.2,207.06,8.06]
[1758686819806,38.68895333,207.2,207.07,4.3444]
[1758686820006,0.75648821,207.2,207.08,8.06]
[1758686820507,0.75648821,207.2,207.09,4.344]
[1758686820697,67.518,207.27,207.09,4.344]
[1758686820698,67.518,207.27,207.1,8.06]
[1758686820901,3.22225901,207.26,207.1,8.06]
[1758686821106,67.5165,207.27,207.1,8.06]
[1758686821507,67.5211,207.26,207.1,8.06]
[1758686821712,67.5259,207.24,207.11,153.38]
[1758686821912,67.5454,207.18,207.05,153.28]
[1758686822101,67.5259,207.24,207.06,8.06]
[1758686822411,67.5241,207.25,207.06,8.06]
[1758686822611,67.5339,207.22,207.06,8.06]
[1758686822807,67.52,207.26,207.07,153.24]
[1758686823006,3.22209862,207.25,207.07,153.24]
[1758686823201,4.3413,207.22,207.07,153.24]
[1758686823411,67.5342,207.22,207.07,153.24]
[1758686823604,67.5294,207.23,207.07,153.24]
[1758686823807,67.5335,207.22,207.07,153.24]
[1758686824109,67.5236,207.25,207.06,160.96]
[1758686824110,70.75719656,207.21,207.06,160.96]
[1758686824309,67.5387,207.2,207.06,160.96]
[1758686824704,67.5359,207.21,207.06,160.96]
[1758686825008,67.5683,207.11,207.0,8.06]
[1758686825210,67.5683,207.11,206.92,8.06]
[1758686825211,4.3456,207.02,206.92,8.06]
[1758686825906,67.5845,207.06,206.92,8.06]
[1758686826106,67.5918,207.04,206.92,8.06]
[1758686827008,67.5791,207.08,206.91,8.06]
[1758686827206,67.5848,207.06,206.91,160.9]
[1758686827609,4.3452,207.04,206.91,160.9]
[1758686827907,67.6008,207.01,206.85,152.84]
[1758686828113,67.5879,207.05,206.86,8.06]
[1758686828311,67.5908,207.04,206.86,8.06]
[1758686828707,4.3456,207.02,206.87,4.3485]
[1758686828911,67.5781,207.08,206.92,8.06]
[1758686829109,67.5811,207.07,206.93,152.94]
[1758686829311,4.3452,207.04,206.93,152.94]
[1758686829713,4.3452,207.04,206.92,8.06]
[1758686829917,67.5909,207.04,206.87,136.6]
[1758686830114,67.5949,207.03,206.87,136.6]
[1758686830312,67.601,207.01,206.85,8.06]
[1758686830512,4.346,207.0,206.88,152.78]
[1758686831618,4.3465,206.97,206.88,152.78]
[1758686831813,67.6007,207.01,206.88,152.78]
[1758686832215,67.6171,206.96,206.85,8.06]
[1758686832409,202.7254,207.09,206.8,3.5343]
[1758686832410,67.5909,207.04,206.87,8.06]
[1758686832609,4.3454,207.03,206.87,8.06]
[1758686833013,67.5755,207.09,206.89,8.06]
[1758686833209,107.10954027,207.09,206.89,8.06]
[1758686833613,67.63,206.92,206.8,3.5343]
[1758686833920,67.6477,206.87,206.8,3.5343]
[1758686834218,67.6563,206.84,206.8,3.5343]
[1758686834417,73.03950573,206.91,206.8,3.5343]
[1758686834616,4.3486,206.88,206.8,3.5343]
[1758686834916,67.6373,206.9,206.8,3.5343]
[1758686835114,4.3482,206.89,206.8,3.5343]
[1758686835314,71.988,206.89,206.8,3.5343]
[1758686835618,82.32376623,206.91,206.8,3.5343]
[1758686835619,14.69036623,206.91,206.8,3.5343]
[1758686835815,67.6285,206.93,206.8,3.5343]
[1758686836411,4.3474,206.93,206.8,3.5343]
[1758686836719,71.9742,206.93,206.81,7.65]
[1758686837020,67.6268,206.93,206.81,7.65]
[1758686837222,4.3479,206.91,206.81,7.65]
[1758686837517,37.90683379,206.94,206.81,7.65]
[1758686837715,4.3469,206.96,206.81,7.65]
[1758686839312,0.748082,207.0,206.84,7.65]
[1758686839517,68.352182,207.0,206.85,152.28]
[1758686839818,4.3471,206.95,206.84,7.65]
[1758686840418,67.637,206.9,206.8,3.5343]
[1758686840921,67.627,206.93,206.8,3.5343]
[1758686841514,4.3472,206.94,206.8,3.5343]
[1758686841715,71.9709,206.94,206.8,3.5343]
[1758686841918,67.6268,206.93,206.8,3.5343]
[1758686842114,71.9781,206.92,206.8,3.5343]
[1758686842319,67.6174,206.96,206.8,3.5343]
[1758686842520,67.6204,206.95,206.8,3.5343]
[1758686842715,4.3475,206.93,206.8,7.8844]
[1758686842922,81.80282596,206.99,206.81,7.65]
[1758686843115,14.19472596,206.99,206.82,219.4226]
[1758686843320,4.3462,206.99,206.84,4.3493]
[1758686843718,71.9538,206.99,206.83,7.65]
[1758686844025,71.9569,206.98,206.83,11.9993]
[1758686844231,67.6146,206.97,206.83,7.65]
[1758686844727,4.3469,206.96,206.83,7.65]
[1758686844925,67.6074,206.99,206.83,7.65]
[1758686845321,4.3462,206.99,206.84,4.3492]
[1758686845522,67.6077,206.99,206.83,7.65]
[1758686845823,0.748082,207.0,206.83,7.65]
[1758686846024,4.3464,206.98,206.83,7.65]
[1758686846228,67.6106,206.98,206.83,7.65]
[1758686847034,4.3469,206.96,206.83,7.65]
[1758686847429,4.3469,206.96,206.83,11.9994]
[1758686847628,0.748082,207.0,206.85,7.68]
[1758686848026,5.094082,207.0,206.85,7.68]
[1758686848326,3.55132428,206.99,206.85,7.68]
[1758686848527,5.094082,207.0,206.85,7.68]
[1758686848730,3.55163811,206.99,206.85,7.68]
[1758686848928,5.094082,207.0,206.85,7.68]
[1758686849230,3.55058903,206.99,206.85,7.68]
[1758686849431,5.094082,207.0,206.85,7.68]
[1758686849632,3.55035519,206.99,206.85,7.68]
[1758686849833,5.094082,207.0,206.85,7.68]
[1758686850028,3.55008422,206.99,206.85,7.68]
[1758686850237,14.19508294,207.01,206.87,7.68]
[1758686850434,106.41998648,207.04,206.87,7.68]
[1758686850435,3.55028591,207.0,206.87,7.68]
[1758686850634,106.41998648,207.04,206.87,7.68]
[1758686850830,3.55029149,207.03,206.88,4.3484]
[1758686851033,3.55029149,207.02,206.9,7.68]
[1758686851237,67.5752,207.09,206.91,149.92]
[1758686851432,4.3449,207.05,206.92,4.3476]
[1758686851649,4.3449,207.05,206.91,149.92]
[1758686851936,3.55218598,207.04,206.91,149.92]
[1758686852132,3.55218598,207.03,206.91,149.92]
[1758686852326,67.5777,207.08,206.92,7.68]
[1758686852532,3.55264327,207.07,206.92,7.68]
[1758686852736,7.89734327,207.06,206.92,12.0276]
[1758686852938,3.55264327,207.05,206.92,7.68]
[1758686853133,4.3447,207.06,206.92,7.68]
[1758686853636,3.55235585,207.05,206.84,7.68]
[1758686853846,67.6074,206.99,206.84,7.68]
[1758686854138,67.6138,206.97,206.84,7.68]
[1758686855841,4.347,206.95,206.84,7.68]
[1758686856628,67.6077,206.99,206.84,7.68]
[1758686856834,3.55025288,206.98,206.84,7.68]
[1758686857139,67.6077,206.99,206.84,7.68]
[1758686857336,3.5505886,206.98,206.85,148.92]
[1758686857541,67.6077,206.99,206.85,148.92]
[1758686857936,4.3468,206.96,206.85,148.92]
[1758686858546,4.3463,206.99,206.85,153.269]
[1758686858746,67.6071,206.99,206.85,153.269]
[1758686858944,67.6171,206.96,206.85,148.92]
[1758686859450,67.621,206.95,206.85,148.92]
[1758686859748,67.6114,206.98,206.85,148.92]
[1758686859952,67.6172,206.96,206.85,148.92]
[1758686860455,4.3478,206.92,206.85,148.92]
[1758686860848,67.6172,206.96,206.85,148.92]
[1758686861040,4.3474,206.93,206.85,148.92]
[1758686863254,4.3474,206.93,206.8,3.5343]
[1758686863255,67.6334,206.91,206.8,3.5343]
[1758686863443,67.6293,206.93,206.8,3.5343]
[1758686863648,3.55375767,206.92,206.8,3.5343]
[1758686863850,4.3482,206.89,206.8,3.5343]
[1758686864152,67.6461,206.87,206.8,3.5343]
[1758686864350,67.654,206.85,206.8,3.5343]
[1758686864551,4.3495,206.83,206.8,3.19999902]
[1758686864751,3.55416769,206.82,206.8,3.19999902]
[1758686864946,4.3495,206.83,206.8,3.19999902]
[1758686865351,5.40610573,206.89,206.72,7.68]
[1758686865352,73.04610573,206.89,206.72,7.68]
[1758686865558,3.5530074,206.88,206.72,12.0317]
[1758686865852,67.6334,206.91,206.74,75.3678]
[1758686865853,39.32883474,206.91,206.74,75.3678]
[1758686866159,3.55333458,206.9,206.76,4.3509]
[1758686866453,4.3475,206.93,206.77,7.68]
[1758686866655,4.3475,206.93,206.77,12.0306]
[1758686866656,3.55782261,206.92,206.77,12.0306]
[1758686866854,4.3475,206.93,206.78,7.68]
[1758686867052,4.3475,206.93,206.8,7.68]
[1758686867253,3.56077207,206.92,206.8,7.68]
[1758686867556,4.3475,206.93,206.8,7.68]
[1758686867753,3.560769,206.92,206.8,7.68]
[1758686867953,4.3475,206.93,206.8,7.68]
[1758686868153,3.55942587,206.92,206.8,7.68]
[1758686868353,7.90722587,206.91,206.8,7.68]
[1758686868546,8.55845962,206.99,206.81,4.3499]
[1758686868751,3.56421719,206.96,206.82,7.68]
[1758686868951,3.56421719,206.95,206.82,7.68]
[1758686869149,3.56421719,206.94,206.82,7.68]
[1758686869356,4.3478,206.91,206.82,7.68]
[1758686869560,3.56855925,206.9,206.82,7.68]
[1758686869761,4.3478,206.91,206.82,7.68]
[1758686869959,4.3483,206.89,206.82,7.68]
[1758686870350,3.53594496,206.88,206.82,7.68]
[1758686870556,4.3477,206.92,206.82,7.68]
[1758686870764,3.53593654,206.91,206.82,7.68]
[1758686870961,3.53593654,206.9,206.82,7.68]
[1758686871160,67.6141,206.97,206.82,7.68]
[1758686871356,3.53690404,206.96,206.82,7.68]
[1758686871563,3.53690404,206.95,206.82,7.68]
[1758686871756,3.53690404,206.94,206.82,7.68]
[1758686871957,3.53690404,206.93,206.82,7.68]
[1758686872260,67.6043,207.0,206.82,7.68]
[1758686872460,71.14466991,206.99,206.83,4.3495]
[1758686872661,3.53776991,206.98,206.83,4.3495]
[1758686872857,3.53776991,206.98,206.87,7.68]
[1758686873058,3.53776991,206.97,206.87,7.68]
[1758686873264,3.53776991,206.96,206.87,7.68]
[1758686873465,3.53776991,206.95,206.87,7.68]
[1758686873657,8.55845962,207.03,206.87,7.68]
[1758686873962,3.54013361,207.02,206.87,7.68]
[1758686874173,3.54013361,207.01,206.87,7.68]
[1758686874464,3.54013361,207.0,206.87,7.68]
[1758686874666,3.54013361,206.99,206.87,7.68]
[1758686874867,3.54013361,206.98,206.87,7.68]
[1758686875065,3.54013361,206.97,206.87,7.68]
[1758686875264,4.3454,207.03,206.89,7.76]
[1758686875460,3.53254958,207.02,206.92,7.76]
[1758686875667,0.75389243,207.06,206.92,7.76]
[1758686875864,3.4848749,207.05,206.92,12.1075]
[1758686876064,3.4848749,207.04,206.92,12.1075]
[1758686876366,3.4848749,207.03,206.92,7.76]
[1758686876563,3.4848749,207.02,206.93,148.1]
[1758686876767,4.345,207.05,206.93,148.1]
[1758686876962,3.48543387,207.04,206.93,148.1]
[1758686877164,3.48543387,207.03,206.93,148.1]
[1758686877361,4.3444,207.08,206.93,148.1]
[1758686877562,3.48481035,207.07,206.93,148.1]
[1758686877764,3.48481035,207.06,206.93,148.1]
[1758686877963,4.3444,207.08,206.93,148.1]
[1758686878363,67.5814,207.07,206.93,148.1]
[1758686878564,67.5754,207.09,206.93,148.1]
[1758686879168,67.588,207.05,206.93,148.1]
[1758686879867,4.3456,207.02,206.92,155.82]
[1758686880459,4.345,207.05,206.92,155.82]
[1758686880664,67.5854,207.06,206.92,155.82]
[1758686881170,67.5815,207.07,206.92,155.82]
[1758686881772,4.3451,207.04,206.92,155.82]
[1758686882064,67.5754,207.09,206.93,4.3474]
[1758686882265,67.5715,207.1,206.94,7.76]
[1758686882471,67.5775,207.08,206.94,7.76]
[1758686882669,52.73574773,207.11,206.94,7.76]
[1758686882863,67.5742,207.09,206.94,7.76]
[1758686883465,67.591,207.04,206.94,7.76]
[1758686883769,67.5864,207.06,206.94,7.76]
[1758686883969,4.345,207.05,206.94,7.76]
[1758686884164,67.5928,207.04,206.94,7.76]
[1758686884670,67.6076,206.99,206.91,71.58]
[1758686884869,67.6076,206.99,206.89,7.76]
[1758686885170,67.6106,206.98,206.83,155.72]
[1758686885375,67.6116,206.98,206.83,7.76]
[1758686885575,71.03228655,207.0,206.83,7.76]
[1758686885777,4.3464,206.98,206.83,12.1094]
[1758686885975,4.3464,206.98,206.83,7.76]
[1758686886677,67.62,206.95,206.83,155.72]
[1758686886867,67.6095,206.99,206.83,155.72]
[1758686887072,67.6382,206.9,206.77,7.76]
[1758686887478,3.42718655,206.92,206.77,7.76]
[1758686887673,67.6368,206.9,206.77,7.76]
[1758686888473,71.05958655,206.92,206.77,7.76]
[1758686888678,3.42718655,206.92,206.77,7.76]
[1758686889172,67.6428,206.88,206.77,7.76]
[1758686889381,67.621,206.95,206.77,7.76]
[1758686889382,67.6152,206.97,206.79,7.76]
[1758686889578,67.6152,206.97,206.79,12.1103]
[1758686889579,3.42718655,206.95,206.79,12.1103]
[1758686889779,67.6108,206.98,206.79,7.76]
[1758686889976,67.617,206.96,206.79,7.76]
[1758686890384,4.3471,206.95,206.81,4.3498]
[1758686890685,4.3471,206.95,206.77,67.6782]
[1758686890686,4.3471,206.95,206.82,7.76]
[1758686890979,4.3471,206.95,206.83,147.92]
[1758686891179,4.3475,206.93,206.83,147.92]
[1758686891881,4.3469,206.96,206.83,147.92]
[1758686892080,67.617,206.96,206.83,147.92]
[1758686892977,67.6216,206.95,206.83,147.92]
[1758686893180,67.6237,206.94,206.83,147.92]
[1758686893379,67.6285,206.93,206.83,147.92]
[1758686893686,4.3475,206.93,206.83,147.92]
[1758686894088,67.6138,206.97,206.83,147.92]
[1758686894589,4.3472,206.94,206.83,147.92]
[1758686894887,67.6202,206.95,206.83,147.92]
[1758686895386,4.3476,206.92,206.83,147.92]
[1758686895986,67.5956,207.03,206.84,7.78]
[1758686896177,39.41235857,207.04,206.87,67.6455]
[1758686896380,4.346,207.0,206.88,7.78]
[1758686897292,67.594,207.03,206.88,7.78]
[1758686897487,67.5972,207.02,206.88,7.78]
[1758686897690,67.608,206.99,206.88,7.78]
[1758686897990,67.6106,206.98,206.88,7.78]
[1758686898189,67.6142,206.97,206.83,147.92]
[1758686898391,67.6203,206.95,206.83,147.92]
[1758686898578,67.6143,206.97,206.83,147.92]
[1758686898788,67.6241,206.94,206.83,147.92]
[1758686899487,67.6307,206.92,206.83,147.92]
[1758686899886,67.6332,206.91,206.83,147.92]
[1758686900392,67.6241,206.94,206.78,365.42]
[1758686900587,67.6337,206.91,206.78,365.42]
[1758686900791,67.6441,206.88,206.78,365.42]
[1758686900988,67.6566,206.84,206.71,7.78]
[1758686901795,67.6367,206.9,206.73,7.78]
[1758686902190,71.05208655,206.94,206.71,3.42718655]
[1758686902191,67.6335,206.91,206.77,7.78]
[1758686902382,67.6384,206.9,206.77,7.78]
[1758686902587,67.643,206.88,206.77,7.78]
[1758686902997,67.6563,206.84,206.7,7.78]
[1758686903294,67.6526,206.85,206.71,147.78]
[1758686903495,67.6302,206.92,206.73,67.6886]
[1758686903695,67.6336,206.91,206.74,7.95]
[1758686904893,3.42718655,206.95,206.72,67.6948]
[1758686904894,67.6203,206.95,206.76,7.95]
[1758686905094,67.6238,206.94,206.76,7.95]
[1758686905494,4.3477,206.92,206.78,4.3504]
[1758686905699,106.22147517,206.96,206.8,7.95]
[1758686906286,4.3474,206.93,206.8,12.3]
[1758686906695,4.3473,206.94,206.8,7.95]
[1758686906894,67.607,206.99,206.81,7.95]
[1758686907088,67.623,206.95,206.81,7.95]
[1758686907393,67.6216,206.95,206.81,7.95]
[1758686907594,67.6304,206.92,206.81,7.95]
[1758686907995,67.6401,206.89,206.78,147.72]
[1758686908300,67.6475,206.87,206.76,7.95]
[1758686908994,4.3494,206.84,206.76,7.95]
[1758686909195,67.6575,206.84,206.73,147.7]
[1758686909503,67.6628,206.82,206.73,147.7]
[1758686909796,67.6494,206.86,206.73,147.7]
[1758686909997,67.653,206.85,206.73,147.7]
[1758686910400,67.6494,206.86,206.73,147.7]
[1758686911195,67.6347,206.91,206.74,7.95]
[1758686911397,67.6493,206.86,206.74,7.95]
[1758686911602,4.3497,206.82,206.74,7.95]
[1758686911795,3.42718655,206.88,206.74,7.95]
[1758686912197,67.6496,206.86,206.73,155.65]
[1758686912502,67.6464,206.87,206.73,155.65]
[1758686912805,105.40003061,206.91,206.73,155.65]
[1758686913597,4.3488,206.87,206.76,4.3509]
[1758686914003,37.76533061,206.91,206.76,12.3009]
[1758686914304,37.76533061,206.91,206.76,7.95]
[1758686914305,67.6368,206.9,206.76,7.95]
[1758686914606,67.6336,206.91,206.76,7.95]
[1758686914815,215.2384,206.96,206.76,7.95]
[1758686914816,3.42718655,206.95,206.76,7.95]
[1758686914998,67.6235,206.94,206.76,7.95]
[1758686915198,67.6398,206.89,206.76,7.95]
[1758686915396,67.6306,206.92,206.76,7.95]
[1758686915897,4.3489,206.86,206.76,7.95]
[1758686916295,67.643,206.88,206.76,7.95]
[1758686916492,67.656,206.84,206.73,147.6]
[1758686916692,67.6615,206.83,206.73,147.6]
[1758686916903,4.3501,206.8,206.73,147.6]
[1758686917299,67.6662,206.81,206.73,147.6]
[1758686918097,67.6893,206.74,206.64,7.95]
[1758686918298,71.10388655,206.78,206.64,7.95]
[1758686918497,67.6822,206.76,206.64,7.95]